fUST/lending_fUST_20240706
["ID","MTS","AMOUNT","RATE_DAILY","PERIOD"]
[331297225,1720196707371,273.37336231,9.9e-05,2]
[331297227,1720196716794,151.21810048,9.9e-05,2]
[331297228,1720196716834,122.15526183,9.9e-05,2]
[331297229,1720196724673,273.37336231,9.9e-05,2]
[331297231,1720196733478,273.37336231,9.9e-05,2]
[331297232,1720196741637,273.37336231,9.9e-05,2]
[331297233,1720196751206,29.06283865,9.9e-05,2]
[331297234,1720196751267,244.31052366,9.9e-05,2]
[331297235,1720196759595,273.37336231,9.9e-05,2]
[331297236,1720196761331,225.88432277,9.9e-05,2]
[331297237,1720196761379,1542.74304063,9.9e-05,2]
[331297238,1720196767712,273.37336231,9.9e-05,2]
[331297239,1720196776807,273.37336231,9.9e-05,2]
[331297240,1720196784688,273.37336231,9.9e-05,2]
[331297241,1720196786569,16240.61458119,9.9e-05,2]
[331297242,1720196794848,273.37336231,9.9e-05,2]
[331297243,1720196802043,273.37336231,9.9e-05,2]
[331297244,1720196811013,273.37336231,9.9e-05,2]
[331297245,1720196819733,273.37336231,9.9e-05,2]
[331297246,1720196822083,3713.18595508,0.00012,2]
[331297247,1720196828290,273.37336231,9.9e-05,2]
[331297248,1720196836425,273.37336231,9.9e-05,2]
[331297249,1720196843039,357.922179,9.9e-05,2]
[331297250,1720196844011,273.37336231,9.9e-05,2]
[331297251,1720196854388,273.37336231,9.9e-05,2]
[331297252,1720196856517,155.30156039,0.00012,2]
[331297253,1720196862091,273.37336231,9.9e-05,2]
[331297254,1720196870194,273.37336231,9.9e-05,2]
[331297255,1720196878779,273.37336231,9.9e-05,2]
[331297257,1720196888862,273.37336231,9.9e-05,2]
[331297258,1720196893037,155.88409526,0.00012,2]
[331297260,1720196896563,273.37336231,9.9e-05,2]
[331297261,1720196905650,273.37336231,9.9e-05,2]
[331297262,1720196914565,273.37336231,9.9e-05,2]
[331297263,1720196921806,273.37336231,9.9e-05,2]
[331297264,1720196929970,273.37336231,9.9e-05,2]
[331297265,1720196938967,273.37336231,9.9e-05,2]
[331297266,1720196946819,273.37336231,9.9e-05,2]
[331297267,1720196955242,273.37336231,9.9e-05,2]
[331297268,1720196963893,273.37336231,9.9e-05,2]
[331297269,1720196971658,273.37336231,9.9e-05,2]
[331297270,1720196981483,273.37336231,9.9e-05,2]
[331297271,1720196991253,273.37336231,9.9e-05,2]
[331297272,1720196998704,273.37336231,9.9e-05,2]
[331297273,1720197007805,273.37336231,9.9e-05,2]
[331297274,1720197010793,597.0,0.00030362,30]
[331297275,1720197016295,273.37336231,9.9e-05,2]
[331297276,1720197024368,273.37336231,9.9e-05,2]
[331297277,1720197032331,273.37336231,9.9e-05,2]
[331297330,1720197035933,-181.84215111,0.00014,2]
[331297333,1720197035943,-2208.85243143,0.000142,2]
[331297336,1720197035954,-1454.14756857,0.000142,2]
[331297339,1720197035964,-199.9335602,0.00014539,2]
[331297342,1720197035973,-129.83893981,0.00014856,2]
[331297347,1720197035987,-56.81312319,0.00014856,2]
[331297349,1720197035997,-1964.60842852,0.00014998,2]
[331297593,1720197038501,-12597.78178306,0.00014998,2]
[331297645,1720197039010,-85437.60978842,0.00014998,2]
[331297647,1720197039021,-1926.0610359,0.00014999,2]
[331297648,1720197039032,-378.3419311,0.0001534,2]
[331297649,1720197039042,-408.7028726,0.00015639,2]
[331297650,1720197039052,-3547.35828622,0.00016154,2]
[331297651,1720197039062,-300.0,0.00016244,2]
[331297652,1720197039072,-300.0,0.00016244,2]
[331297653,1720197039082,-631.00353738,0.00016244,2]
[331297654,1720197039092,-500.0,0.00016244,2]
[331297655,1720197039102,-500.0,0.00016244,2]
[331297656,1720197039113,-200.0,0.00016244,2]
[331297657,1720197039134,-500.0,0.00016244,2]
[331297659,1720197039148,-456.64282491,0.00016244,2]
[331297660,1720197039161,-500.0,0.00016244,2]
[331297662,1720197039172,-480.66081078,0.00016244,2]
[331297664,1720197039183,-500.0,0.00016244,2]
[331297666,1720197039193,-298.37822283,0.00016244,2]
[331297668,1720197039204,-504.37718247,0.00016244,2]
[331297670,1720197039214,-316.63611503,0.00016244,2]
[331297671,1720197039224,-500.0,0.00016244,2]
[331297673,1720197039234,-500.0,0.00016244,2]
[331297674,1720197039244,-500.0,0.00016244,2]
[331297675,1720197039253,-398.78648661,0.00016244,2]
[331297676,1720197039263,-500.0,0.00016244,2]
[331297677,1720197039273,-500.0,0.00016244,2]
[331297678,1720197039283,-500.0,0.00016244,2]
[331297679,1720197039293,-142169.547849,0.00016245,2]
[331297680,1720197039303,-300.0,0.00016254,2]
[331297681,1720197039314,-57214.94712358,0.00016254,2]
[331297682,1720197039324,-30000.0,0.00016255,2]
[331297683,1720197039335,-34932.27430829,0.00016255,2]
[331297684,1720197039345,-42226.30858632,0.00016255,2]
[331297685,1720197039355,-166.666666,0.00016438,2]
[331297686,1720197039365,-47389.849283,0.00016586,2]
[331297687,1720197039377,-24900.0,0.00016596,2]
[331297688,1720197039387,-166.666666,0.00016823,2]
[331297689,1720197039541,-166.666666,0.00017208,2]
[331297690,1720197039552,-3000.0,0.0001721,2]
[331297691,1720197039563,-166.666666,0.00017592,2]
[331297692,1720197039572,-420.0,0.00017868,2]
[331297693,1720197039583,-166.666666,0.00017977,2]
[331297694,1720197039593,-166.666666,0.00018362,2]
[331297695,1720197039603,-94779.698566,0.00018889,2]
[331297696,1720197039614,-250.0,0.00019041,2]
[331297697,1720197039626,-159.4590276,0.00019178,2]
[331297698,1720197039636,-150.0,0.00019533,2]
[331297699,1720197039646,-587.0,0.00019655,2]
[331297700,1720197039656,-3547.3582862,0.00019693,2]
[331297701,1720197039665,-302.75782099,0.0002,2]
[331297702,1720197039675,-302.75782099,0.0002,2]
[331297703,1720197039686,-250.0,0.00020081,2]
[331297704,1720197039695,-302.75782099,0.000204,2]
[331297705,1720197039705,-302.75782099,0.000206,2]
[331297706,1720197039715,-350.0,0.00020629,2]
[331297707,1720197039724,-302.75782099,0.000208,2]
[331297708,1720197039734,-587.638852,0.00021096,2]
[331297709,1720197039744,-450.0,0.00021177,2]
[331297710,1720197039754,-454.13673149,0.000212,4]
[331297711,1720197039764,-454.13673149,0.000214,4]
[331297712,1720197039774,-823.0,0.00021621,2]
[331297713,1720197039784,-400.0,0.00021725,2]
[331297714,1720197039794,-454.13673149,0.000218,4]
[331297715,1720197039805,-150.0,0.0002185,2]
[331297716,1720197039815,-186.652063,0.00022284,2]
[331297717,1720197039825,-250.0,0.00022398,2]
[331297718,1720197039835,-173.99614649,0.0002245,2]
[331297719,1720197039845,-166.3358,0.00022837,2]
[331297720,1720197039856,-350.0,0.00022946,2]
[331297721,1720197039869,-200.0,0.00023,2]
[331297722,1720197039881,-1088.67887821,0.00023075,2]
[331297723,1720197039890,-160.13983905,0.00023171,2]
[331297724,1720197039900,-3547.3582862,0.00023231,2]
[331297725,1720197039911,-383.42161421,0.00023494,2]
[331297726,1720197039921,-1152.0,0.00023783,2]
[331297727,1720197039932,-158.66408624,0.00023828,2]
[331297728,1720197039942,-643.43394391,0.00024229,2]
[331297729,1720197039952,-200.0,0.00024658,15]
[331297730,1720197039964,-380.0,0.00024658,2]
[331297731,1720197039974,-171.58665919,0.00025,2]
[331297732,1720197039984,-150.0,0.00025162,2]
[331297733,1720197039994,-621.1716972,0.0002544,2]
[331297734,1720197040004,-52100.07365113,0.00025501,2]
[331297735,1720197040014,-250.0,0.0002571,2]
[331297736,1720197040023,-1435.0,0.00026161,2]
[331297737,1720197040033,-350.0,0.00026258,2]
[331297740,1720197040043,-620.05858486,0.00026712,2]
[331297743,1720197040053,-151.57276841,0.00026769,2]
[331297746,1720197040063,-3547.3582862,0.0002677,2]
[331297748,1720197040074,-450.0,0.00026806,2]
[331297750,1720197040083,-152.80906433,0.00027163,2]
[331297752,1720197040093,-587.638852,0.00027195,2]
[331297754,1720197040104,-550.29383564,0.00027354,2]
[331297755,1720197040114,-207.09828204,0.00027397,2]
[331297756,1720197040126,-500.0,0.00027397,2]
[331297757,1720197040136,-500.0,0.00027397,2]
[331297758,1720197040147,-500.0,0.00027397,2]
[331297759,1720197040157,-500.0,0.00027397,2]
[331297760,1720197040169,-500.0,0.00027397,2]
[331297761,1720197040179,-500.0,0.00027397,2]
[331297762,1720197040189,-500.0,0.00027397,2]
[331297763,1720197040200,-500.0,0.00027397,2]
[331297764,1720197040210,-500.0,0.00027397,2]
[331297765,1720197040220,-500.0,0.00027397,2]
[331297766,1720197040230,-500.0,0.00027397,2]
[331297768,1720197040240,-500.0,0.00027397,2]
[331297770,1720197040250,-500.0,0.00027397,2]
[331297772,1720197040261,-500.0,0.00027397,2]
[331297773,1720197040271,-402.65664353,0.00027397,2]
[331297774,1720197040282,-500.0,0.00027397,2]
[331297775,1720197040292,-500.0,0.00027397,2]
[331297776,1720197040302,-396.282586,0.00027397,120]
[331297777,1720197040312,-156.26240969,0.00027489,2]
[331297778,1720197040323,-156.26240969,0.00027496,2]
[331297780,1720197040333,-150.30016482,0.00027844,2]
[331297782,1720197040343,-17247.80566422,0.00027999,2]
[331297783,1720197040353,-12193.72029826,0.00028,30]
[331297785,1720197040363,-504.49555993,0.00028,2]
[331297787,1720197040379,-620.00292924,0.00028048,2]
[331297789,1720197040390,-152.80906433,0.00029102,2]
[331297791,1720197040400,-13378.11390107,0.00029823,2]
[331297793,1720197040410,-9615.23092531,0.00029879,2]
[331297795,1720197040423,-10576.24668885,0.00029903,2]
[331297797,1720197040436,-6364.3639553,0.00029904,2]
[331297799,1720197040448,-1215.67662641,0.0003,3]
[331297801,1720197040459,-217.0,0.0003,2]
[331297803,1720197040469,-82225.31259301,0.000301,15]
[331297805,1720197040479,-1002.845982,0.000301,2]
[331297808,1720197040491,-3547.3582862,0.00030308,2]
[331297809,1720197040501,-150.0,0.00030362,7]
[331297812,1720197040512,-160.42,0.00030362,7]
[331297814,1720197040525,-303.02802488,0.00030362,4]
[331297815,1720197040537,-154.88383712,0.00030362,4]
[331297816,1720197040547,-253.98954123,0.00030362,4]
[331297817,1720197040558,-574.98913929,0.00030362,4]
[331297818,1720197040567,-284.22582068,0.00030362,3]
[331297819,1720197040577,-1025.42362351,0.00030362,4]
[331297820,1720197040587,-5606.64343783,0.00030362,4]
[331297822,1720197040598,-2244.84007704,0.00030362,30]
[331297824,1720197040608,-169.50434797,0.00030362,4]
[331297826,1720197040621,-304.31082142,0.00030362,4]
[331297828,1720197040632,-29994.11404709,0.00030362,10]
[331297829,1720197040642,-152.80906433,0.00030408,7]
[331297831,1720197040653,-152.80906433,0.0003195,7]
[331297833,1720197040663,-396.282586,0.00031963,120]
[331297835,1720197040674,-158.66408624,0.00032269,7]
[331297837,1720197040685,-217.0,0.00033,2]
[331297838,1720197040696,-217.0,0.00033,2]
[331297839,1720197040706,-809.81076763,0.00033141,2]
[331297840,1720197040716,-150.73437924,0.00033242,7]
[331297841,1720197040727,-587.638852,0.00033295,2]
[331297842,1720197040737,-26009.79821968,0.00033842,60]
[331297843,1720197040748,-1769.437153,0.00033842,7]
[331297844,1720197040758,-151.0,0.00033842,7]
[331297845,1720197040768,-1769.437153,0.00033842,7]
[331297846,1720197040778,-151.0,0.00033842,7]
[331297847,1720197040788,-151.0,0.00033842,7]
[331297848,1720197040799,-151.0,0.00033842,7]
[331297849,1720197040809,-310.0,0.00033842,30]
[331297850,1720197040819,-310.0,0.00033842,30]
[331297851,1720197040831,-310.0,0.00033842,30]
[331297852,1720197040846,-310.0,0.00033842,30]
[331297853,1720197040858,-446.822796,0.00033842,30]
[331297854,1720197040869,-150.8642222,0.00034085,2]
[331297855,1720197040880,-1032.895837,0.00034317,7]
[331297856,1720197040890,-491.971328,0.00034317,7]
[331297857,1720197040902,-151.0,0.00034317,7]
[331297858,1720197040912,-151.0,0.00034317,7]
[331297859,1720197040922,-151.0,0.00034317,7]
[331297860,1720197040932,-298.006909,0.00034317,7]
[331297861,1720197040941,-298.006909,0.00034317,7]
[331297862,1720197040951,-9380.78685145,0.00034421,4]
[331297863,1720197040961,-151.57276841,0.00034452,7]
[331297864,1720197040973,-151.0,0.00034458,7]
[331297865,1720197040982,-766.189364,0.00034458,7]
[331297866,1720197040992,-766.189364,0.00034458,7]
[331297867,1720197041002,-248.834709,0.00034458,7]
[331297868,1720197041012,-248.834709,0.00034458,7]
[331297869,1720197041022,-151.0,0.0003454,7]
[331297870,1720197041031,-151.76923,0.0003454,7]
[331297871,1720197041041,-151.0,0.00034551,7]
[331297872,1720197041051,-151.0,0.00034551,7]
[331297873,1720197041061,-209.958757,0.00034551,7]
[331297874,1720197041071,-209.958757,0.00034551,7]
[331297875,1720197041080,-6329.73360915,0.00034562,4]
[331297876,1720197041090,-5331.37523403,0.00034563,7]
[331297877,1720197041099,-2833.16446756,0.00034574,120]
[331297878,1720197041108,-4216.21563341,0.00034585,2]
[331297879,1720197041121,-4136.6527888,0.00034585,4]
[331297880,1720197041130,-1500.0,0.00034588,4]
[331297881,1720197041140,-1500.0,0.00034588,4]
[331297882,1720197041150,-1181.31020319,0.00034588,4]
[331297883,1720197041161,-4205.92284105,0.00034623,4]
[331297884,1720197041202,-276.225502,0.00034623,7]
[331297885,1720197041213,-276.225502,0.00034623,7]
[331297886,1720197041254,-192.97881,0.00034623,7]
[331297887,1720197041267,-192.97881,0.00034623,7]
[331297888,1720197041292,-1061.23104722,0.00034634,4]
[331297889,1720197041302,-2196.40771411,0.00034642,4]
[331297890,1720197041312,-2196.40771411,0.00034642,4]
[331297891,1720197041322,-1260.01242543,0.00034642,4]
[331297892,1720197041331,-3252.46185806,0.00034642,4]
[331297893,1720197041341,-1260.01242543,0.00034642,4]
[331297894,1720197041350,-301.7284444,0.00034657,4]
[331297895,1720197041360,-793.78228741,0.00034669,4]
[331297896,1720197041370,-571.57146855,0.0003467,4]
[331297897,1720197041379,-170.32678473,0.00034672,4]
[331297898,1720197041388,-1556.2663267,0.0003468,4]
[331297899,1720197041397,-685.34975868,0.00034688,4]
[331297900,1720197041407,-501.29621739,0.00034762,4]
[331297901,1720197041416,-155.1773566,0.00034771,2]
[331297902,1720197041426,-1000.0,0.000348,3]
[331297903,1720197041435,-155.06768222,0.00034811,4]
[331297904,1720197041445,-526.06091387,0.00034811,4]
[331297905,1720197041459,-154.90239274,0.00034899,4]
[331297906,1720197041469,-2146.27761673,0.00034899,14]
[331297907,1720197041479,-2846.41091448,0.00034899,4]
[331297908,1720197041490,-154.85288975,0.00034899,4]
[331297909,1720197041499,-155.34279108,0.00034899,4]
[331297910,1720197041508,-202.96633695,0.00034989,4]
[331297911,1720197041519,-210.81465367,0.00034989,4]
[331297912,1720197041530,-703.503434,0.00034989,4]
[331297913,1720197041541,-351.32038796,0.00034989,30]
[331297914,1720197041551,-256.0036371,0.00034989,4]
[331297915,1720197041560,-915.06377454,0.00034997,2]
[331297916,1720197041569,-151.22207,0.00034999,7]
[331297917,1720197041579,-151.0,0.00034999,7]
[331297918,1720197041588,-603.4568888,0.0003524,7]
[331297919,1720197041597,-576.35561417,0.00035259,4]
[331297920,1720197041606,-2574.95126342,0.00035259,4]
[331297921,1720197041616,-1500.68966724,0.00035259,2]
[331297922,1720197041629,-486.13401408,0.00035572,2]
[331297923,1720197041643,-898.78971019,0.00035572,2]
[331297924,1720197041655,-615.07627573,0.00035572,2]
[331297925,1720197041664,-2000.0,0.00035581,2]
[331297926,1720197041680,-1753.91761028,0.0003559,2]
[331297933,1720197042017,273.37336231,9.9e-05,2]
[331297934,1720197042199,-425.368584,0.00034623,7]
[331297936,1720197042209,-948.9256647,0.00034669,4]
[331297938,1720197042219,-571.57146855,0.00034669,4]
[331297940,1720197042228,-2126.43441341,0.00034762,4]
[331297941,1720197042238,-2865.4309312,0.00034999,4]
[331297942,1720197042247,-2000.89973827,0.00035292,4]
[331297943,1720197042256,-246.08238972,0.0003559,2]
[331297944,1720197042265,-2000.0,0.00035598,2]
[331297945,1720197042274,-2000.0,0.00035607,2]
[331297946,1720197042284,-151.0,0.00035615,7]
[331297947,1720197042293,-221.554581,0.00035615,7]
[331297948,1720197042303,-151.0,0.00035615,7]
[331297949,1720197042312,-151.0,0.00035615,7]
[331297950,1720197042322,-221.554581,0.00035615,7]
[331297951,1720197042331,-911.377261,0.00035615,7]
[331297952,1720197042340,-911.377261,0.00035615,7]
[331297953,1720197042349,-439.124018,0.00035615,7]
[331297954,1720197042359,-439.124018,0.00035615,7]
[331297955,1720197042368,-2000.89973827,0.00035615,4]
[331297956,1720197042382,-2000.0,0.00035616,2]
[331297957,1720197042392,-1769.437153,0.00035616,7]
[331297958,1720197042400,-151.0,0.00035616,7]
[331297959,1720197042410,-1769.437153,0.00035616,7]
[331297960,1720197042419,-151.0,0.00035616,7]
[331297961,1720197042428,-151.0,0.00035616,7]
[331297962,1720197042437,-151.0,0.00035616,7]
[331297963,1720197042450,-152.80906433,0.00035678,7]
[331297964,1720197042459,-1739.20802426,0.00035999,4]
[331297965,1720197042469,-531.43672027,0.00036,30]
[331297967,1720197042479,-2500.0,0.00036,2]
[331297969,1720197042489,-217.0,0.00036,2]
[331297971,1720197042509,-217.0,0.00036,2]
[331297973,1720197042523,-200.0,0.0003607,120]
[331297975,1720197042536,-1206.9137776,0.00036132,30]
[331297977,1720197042547,-158.66408624,0.00036374,7]
[331297979,1720197042557,-396.282586,0.0003653,120]
[331297981,1720197042567,-150.30016482,0.00036735,7]
[331297983,1720197042576,-151.0,0.00036801,7]
[331297985,1720197042585,-570.358131,0.00036801,7]
[331297987,1720197042596,-151.0,0.00036801,7]
[331297989,1720197042606,-570.358131,0.00036801,7]
[331297991,1720197042615,-181.702156,0.00036801,7]
[331297993,1720197042632,-181.702156,0.00036801,7]
[331297995,1720197042642,-151.0,0.00036801,7]
[331297997,1720197042651,-766.189364,0.00036801,7]
[331297998,1720197042661,-766.189364,0.00036801,7]
[331298000,1720197042670,-248.834709,0.00036801,7]
[331298002,1720197042680,-248.834709,0.00036801,7]
[331298004,1720197042689,-309.67041617,0.00037,4]
[331298005,1720197042699,-1029.08397233,0.00037259,4]
[331298006,1720197042708,-1927.48066713,0.00037357,4]
[331298007,1720197042717,-150.73437924,0.00037433,7]
[331298008,1720197042727,-159.2983416,0.00037453,7]
[331298009,1720197042737,-1429.44325412,0.00037523,2]
[331298010,1720197042747,-1091.40807892,0.00037523,21]
[331298011,1720197042756,-151.57276841,0.00037531,7]
[331298012,1720197042766,-950.007447,0.00037788,7]
[331298013,1720197042775,-950.007447,0.00037788,7]
[331298014,1720197042785,-151.0,0.00037789,7]
[331298015,1720197042796,-151.0,0.00037789,7]
[331298016,1720197042807,-151.0,0.00037789,7]
[331298017,1720197042818,-151.0,0.00037789,7]
[331298018,1720197042828,-209.958757,0.00037789,7]
[331298019,1720197042838,-209.958757,0.00037789,7]
[331298020,1720197042849,-151.746885,0.00037789,7]
[331298021,1720197042859,-1032.895837,0.00037789,7]
[331298022,1720197042872,-491.971328,0.00037789,7]
[331298023,1720197042882,-151.0,0.00037789,7]
[331298024,1720197042892,-151.0,0.00037789,7]
[331298025,1720197042902,-151.0,0.00037789,7]
[331298026,1720197042912,-298.006909,0.00037789,7]
[331298027,1720197042922,-298.006909,0.00037789,7]
[331298028,1720197042931,-642.76758109,0.00037807,4]
[331298029,1720197042940,-659.63990418,0.00037899,2]
[331298030,1720197042950,-264.86125261,0.00038264,2]
[331298031,1720197042960,-978.04,0.00038356,30]
[331298032,1720197042970,-152.80906433,0.00038535,7]
[331298033,1720197042979,-160.13983905,0.00038571,7]
[331298034,1720197042988,-809.81076763,0.00038804,2]
[331298035,1720197042998,-151.57276841,0.00038932,7]
[331298036,1720197043007,-235.33275104,0.00038999,4]
[331298037,1720197043016,-154.85288975,0.00038999,4]
[331298038,1720197043024,-235.33275104,0.00038999,4]
[331298039,1720197043034,-217.0,0.00039,2]
[331298040,1720197043043,-256.53141225,0.00039167,2]
[331298041,1720197043052,-154.85288975,0.00039167,4]
[331298042,1720197043062,-215.10199221,0.00039167,4]
[331298043,1720197043071,-393.89323921,0.00039177,4]
[331298044,1720197043080,-154.85288975,0.00039177,4]
[331298045,1720197043089,-231.37431573,0.00039177,4]
[331298046,1720197043100,-360.48479037,0.00039177,4]
[331298047,1720197043111,-371.39375676,0.00039177,4]
[331298048,1720197043123,-152.80906433,0.00039331,7]
[331298049,1720197043131,-435.0,0.00039393,2]
[331298050,1720197043141,-360.48479037,0.00039393,4]
[331298051,1720197043151,-587.638852,0.00039394,2]
[331298052,1720197043160,-379.04509844,0.0003988,120]
[331298053,1720197043168,-4591.6811785,0.00039899,2]
[331298054,1720197043178,-151.0,0.00039989,7]
[331298055,1720197043208,-151.0,0.00039989,7]
[331298056,1720197043226,-151.0,0.00039989,7]
[331298057,1720197043236,-155.04482031,0.00039994,4]
[331298058,1720197043245,-166.3358,0.00039995,2]
[331298059,1720197043254,-3990.00210664,0.00039999,4]
[331298060,1720197043264,-151.0,0.0004,120]
[331298061,1720197043273,-151.0,0.0004,120]
[331298062,1720197043282,-150.62364424,0.00040156,2]
[331298063,1720197043292,-151.0,0.00040229,7]
[331298064,1720197043301,-221.554581,0.00040229,7]
[331298065,1720197043310,-151.0,0.00040229,7]
[331298066,1720197043319,-151.0,0.00040229,7]
[331298067,1720197043328,-221.554581,0.00040229,7]
[331298068,1720197043338,-911.377261,0.00040229,7]
[331298069,1720197043347,-911.377261,0.00040229,7]
[331298070,1720197043357,-439.124018,0.00040229,7]
[331298071,1720197043366,-439.124018,0.00040229,7]
[331298072,1720197043380,-151.0,0.00040278,7]
[331298073,1720197043389,-570.358131,0.00040278,7]
[331298074,1720197043397,-151.0,0.00040278,7]
[331298075,1720197043406,-570.358131,0.00040278,7]
[331298076,1720197043418,-181.702156,0.00040278,7]
[331298077,1720197043427,-181.702156,0.00040278,7]
[331298078,1720197043436,-950.007447,0.00040807,7]
[331298079,1720197043445,-950.007447,0.00040807,7]
[331298080,1720197043457,-150.73437924,0.00040982,30]
[331298081,1720197043466,-154.85288975,0.00040999,10]
[331298082,1720197043474,-7314.95847275,0.00041,30]
[331298083,1720197043483,-2500.0,0.00041,7]
[331298084,1720197043493,-396.282586,0.00041096,120]
[331298085,1720197043502,-151.0,0.00041288,120]
[331298086,1720197043512,-256.92415643,0.00041364,4]
[331298087,1720197043521,-160.13983905,0.00041479,30]
[331298088,1720197043533,-151.0,0.00041781,120]
[331298089,1720197043543,-533.61474575,0.00041941,4]
[331298090,1720197043553,-756.10572234,0.00041999,4]
[331298091,1720197043563,-188.75653871,0.00042398,4]
[331298092,1720197043572,-176.18877867,0.00042398,4]
[331298093,1720197043581,-151.57276841,0.00042551,30]
[331298094,1720197043591,-151.0,0.00042575,120]
[331298095,1720197043600,-153.17115845,0.00042721,30]
[331298096,1720197043609,-158.66408624,0.00042721,30]
[331298097,1720197043619,-1971.53761651,0.00042999,30]
[331298098,1720197043630,-151.0,0.00042999,14]
[331298099,1720197043639,-151.0,0.00042999,14]
[331298100,1720197043648,-151.0,0.00042999,14]
[331298101,1720197043658,-152.80906433,0.00043454,30]
[331298102,1720197043667,-151.0,0.00043562,120]
[331298103,1720197043677,-152.80906433,0.00043738,30]
[331298104,1720197043686,-200.0,0.00043794,120]
[331298105,1720197043695,-368.906147,0.00043836,14]
[331298106,1720197043704,-368.906147,0.00043836,14]
[331298107,1720197043715,-368.906147,0.00043836,14]
[331298108,1720197043725,-368.906147,0.00043836,14]
[331298109,1720197043734,-151.0,0.00043863,120]
[331298110,1720197043744,-156.26240969,0.00044131,30]
[331298111,1720197043753,-809.81076763,0.00044466,28]
[331298112,1720197043762,-151.57276841,0.00044692,30]
[331298113,1720197043771,-10000.0,0.00045,45]
[331298114,1720197043780,-166.0,0.00045,90]
[331298115,1720197043789,-156.0,0.00045,90]
[331298116,1720197043798,-151.0,0.00045151,120]
[331298117,1720197043808,-150.73437924,0.00045297,30]
[331298118,1720197043817,-152.80906434,0.00045335,30]
[331298119,1720197043826,-151.0,0.00045342,120]
[331298120,1720197043835,-587.638852,0.00045494,2]
[331298121,1720197043845,-34000.0,0.000455,120]
[331298122,1720197043854,-766.189364,0.000455,14]
[331298123,1720197043864,-766.189364,0.000455,14]
[331298124,1720197043875,-248.834709,0.000455,14]
[331298125,1720197043884,-248.834709,0.000455,14]
[331298126,1720197043893,-276.225502,0.000455,14]
[331298127,1720197043902,-276.225502,0.000455,14]
[331298128,1720197043912,-192.97881,0.000455,14]
[331298129,1720197043921,-192.97881,0.000455,14]
[331298130,1720197043930,-425.368584,0.000455,14]
[331298131,1720197043940,-300.0,0.00045576,7]
[331298132,1720197043950,-166.0,0.00045685,90]
[331298133,1720197043959,-300.0,0.00045903,7]
[331298134,1720197043969,-10000.0,0.00046,46]
[331298135,1720197043978,-480.75,0.00046,120]
[331298136,1720197043987,-2500.0,0.00046,7]
[331298137,1720197043996,-155.0,0.0004617,52]
[331298138,1720197044005,-165.722,0.00046388,2]
[331298139,1720197044014,-999.759,0.00046388,2]
[331298140,1720197044023,-151.0,0.00046438,120]
[331298141,1720197044033,-156.2624097,0.00046535,30]
[331298142,1720197044043,-1000.0,0.00046575,120]
[331298143,1720197044052,-500.0,0.00046575,60]
[331298144,1720197044061,-1000.0,0.00046575,120]
[331298145,1720197044070,-1000.0,0.00046575,120]
[331298146,1720197044079,-1000.0,0.00046575,120]
[331298147,1720197044088,-1000.0,0.00046575,120]
[331298148,1720197044097,-1000.0,0.00046575,120]
[331298149,1720197044106,-1000.0,0.00046575,120]
[331298150,1720197044115,-633.25139038,0.00046575,120]
[331298151,1720197044126,-400.0,0.00046575,60]
[331298152,1720197044135,-241.0547,0.00046788,2]
[331298153,1720197044146,-300.0,0.00046826,7]
[331298154,1720197044155,-3500.0,0.00046849,120]
[331298155,1720197044164,-857.22695229,0.00046849,120]
[331298156,1720197044174,-440.9209018,0.00046849,2]
[331298157,1720197044183,-307.2187865,0.00046849,2]
[331298158,1720197044192,-453.2286641,0.00046849,2]
[331298159,1720197044201,-158.66408624,0.00046922,30]
[331298160,1720197044211,-11734.37857733,0.00046923,120]
[331298161,1720197044220,-150.73437924,0.00046952,30]
[331298162,1720197044230,-1322.0,0.00046989,56]